[Event "48th Indian U15-ch Girls 2023"]
[Site "Jalgaon"]
[Date "2023.12.28"]
[Round "2.8"]
[White "Prakash Vaishnavi"]
[Black "Anupam M Sreekumar"]
[Result "0-1"]
[WhiteElo "1421"]
[BlackElo "1642"]
[PlyCount "111"]
[EventDate "2023.12.30"]
[EventType "swiss"]
[EventCountry "IND"]
[TimeControl "5400+30"]

1. e4 {[%emt 0:00:25]} c5 {[%emt 0:00:43]} 2. Nf3 {[%emt 0:00:19]} e6 {[%emt 0:00:57]} 3. d4 {[%emt 0:01:09]} cxd4 {[%emt 0:01:21]} 4. Nxd4 {[%emt 0:00:21]} a6 {[%emt 0:00:30]} 5. c4 {[%emt 0:02:25]} Nf6 {[%emt 0:02:48]} 6. Nc3 {[%emt 0:00:59]} Qc7 {[%emt 0:01:18]} 7. a3 {[%emt 0:01:40]} b6 {[%emt 0:02:23]} 8. Be2 {[%emt 0:05:26]} Bb7 {[%emt 0:01:41]} 9. Qd3 {[%emt 0:04:14]} d6 {[%emt 0:04:46]} 10. b3 {[%emt 0:07:35]} Nbd7 {[%emt 0:04:01]} 11. f3 {[%emt 0:03:40]} Be7 {[%emt 0:02:09]} 12. Bb2 {[%emt 0:02:37]} O-O {[%emt 0:01:43]} 13. O-O {[%emt 0:01:20]} Rfd8 {[%emt 0:05:15]} 14. Rac1 {[%emt 0:03:38]} Rac8 {[%emt 0:01:21]} 15. Qe3 {[%emt 0:06:56]} d5 {[%emt 0:18:47]} 16. Kh1 {[%emt 0:09:06]} Bd6 {[%emt 0:05:59]} 17. g3 {[%emt 0:07:52]} Bc5 {[%emt 0:06:40]} 18. b4 {[%emt 0:12:27]} Bxd4 {[%emt 0:11:37]} 19. Qxd4 {[%emt 0:00:37]} e5 {[%emt 0:01:04]} 20. Qf2 {[%emt 0:02:27]} dxc4 {[%emt 0:01:34]} 21. b5 {[%emt 0:02:29]} Nf8 {[%emt 0:15:40]} 22. a4 {[%emt 0:08:50]} Rd2 {[%emt 0:01:20]} 23. Ba1 {[%emt 0:00:23]} Qc5 {[%emt 0:03:38]} 24. Qxc5 {[%emt 0:05:31]} Rxc5 {[%emt 0:00:05]} 25. Rfd1 {[%emt 0:00:10]} Rd4 {[%emt 0:01:24]} 26. bxa6 {[%emt 0:02:39]} Bxa6 {[%emt 0:00:09]} 27. Nb5 {[%emt 0:04:45]} Rxd1+ {[%emt 0:01:00]} 28. Rxd1 {[%emt 0:00:08]} N8d7 {[%emt 0:02:38]} 29. Na3 {[%emt 0:01:45]} Ra5 {[%emt 0:00:31]} 30. Bxc4 {[%emt 0:01:04]} Rxa4 {[%emt 0:00:29]} 31. Bxa6 {[%emt 0:00:41]} Rxa3 {[%emt 0:00:32]} 32. Bc8 {[%emt 0:02:08]} Kf8 {[%emt 0:00:54]} 33. Bb2 {[%emt 0:00:35]} Rb3 {[%emt 0:00:30]} 34. Bxd7 {[%emt 0:00:36]} Rxb2 {[%emt 0:00:24]} 35. Bc6 {[%emt 0:00:26]} Ke7 {[%emt 0:00:27]} 36. f4 {[%emt 0:00:25]} exf4 {[%emt 0:01:17]} 37. gxf4 {[%emt 0:00:04]} Rc2 {[%emt 0:00:23]} 38. Bb5 {[%emt 0:00:35]} Nxe4 {[%emt 0:00:32]} 39. Re1 {[%emt 0:00:59]} f5 {[%emt 0:00:30]} 40. Kg1 {[%emt 0:00:18]} Rb2 {[%emt 0:00:45]} 41. Bd3 {[%emt 0:00:17]} Rb4 {[%emt 0:00:03]} 42. Kg2 {[%emt 0:00:22]} Rd4 {[%emt 0:00:26]} 43. Bb1 {[%emt 0:00:13]} Kd6 {[%emt 0:00:22]} 44. Re3 {[%emt 0:00:35]} g6 {[%emt 0:00:55]} 45. Bd3 {[%emt 0:00:47]} Kc5 {[%emt 0:00:09]} 46. Kf3 {[%emt 0:00:20]} b5 {[%emt 0:00:34]} 47. h4 {[%emt 0:00:45]} b4 {[%emt 0:00:59]} 48. h5 {[%emt 0:00:25]} Kd6 {[%emt 0:00:30]} 49. hxg6 {[%emt 0:00:44]} hxg6 {[%emt 0:00:01]} 50. Bb5 {[%emt 0:00:43]} b3 {[%emt 0:00:31]} 51. Rd3 {[%emt 0:00:23]} Rxd3+ {[%emt 0:00:19]} 52. Bxd3 {[%emt 0:00:03]} b2 {[%emt 0:00:22]} 53. Kg2 {[%emt 0:00:48]} Nc3 {[%emt 0:00:05]} 54. Kh3 {[%emt 0:00:16]} b1=Q {[%emt 0:00:15]} 55. Bxb1 {[%emt 0:00:09]} Nxb1 {[%emt 0:00:03]} 56. Kh4 {[%emt 0:00:11]} 0-1

[Event "48th Indian U15-ch Girls 2023"]
[Site "Jalgaon"]
[Date "2023.12.28"]
[Round "2.9"]
[White "Modipalli Deekshitha"]
[Black "Bhat Sannidhi Ramakrishna"]
[Result "0-1"]
[WhiteElo "1394"]
[BlackElo "1637"]
[PlyCount "102"]
[EventDate "2023.12.30"]
[EventType "swiss"]
[EventCountry "IND"]
[TimeControl "5400+30"]

1. d4 {[%emt 0:00:02]} Nc6 {[%emt 0:00:08]} 2. d5 {[%emt 0:00:14]} Nb8 {[%emt 0:00:15]} 3. c4 {[%emt 0:00:16]} d6 {[%emt 0:00:06]} 4. Nc3 {[%emt 0:00:11]} g6 {[%emt 0:00:18]} 5. e4 {[%emt 0:00:45]} Bg7 {[%emt 0:00:16]} 6. Nf3 {[%emt 0:00:30]} Nf6 {[%emt 0:00:27]} 7. Be2 {[%emt 0:00:22]} O-O {[%emt 0:00:31]} 8. O-O {[%emt 0:00:15]} a5 {[%emt 0:03:45]} 9. Re1 {[%emt 0:02:42]} Na6 {[%emt 0:02:07]} 10. h3 {[%emt 0:01:05]} Nc5 {[%emt 0:01:37]} 11. Bf1 {[%emt 0:00:33]} a4 {[%emt 0:12:49]} 12. Rb1 {[%emt 0:04:51]} e5 {[%emt 0:09:58]} 13. dxe6 {[%emt 0:08:36]} Bxe6 {[%emt 0:00:48]} 14. b4 {[%emt 0:00:13]} axb3 {[%emt 0:02:42]} 15. axb3 {[%emt 0:00:08]} Bd7 {[%emt 0:14:31]} 16. g3 {[%emt 0:22:38]} Bc6 {[%emt 0:09:17]} 17. Nd2 {[%emt 0:03:48]} Re8 {[%emt 0:02:56]} 18. Qc2 {[%emt 0:03:42]} h5 {[%emt 0:05:29]} 19. Bg2 {[%emt 0:02:30]} h4 {[%emt 0:03:38]} 20. g4 {[%emt 0:04:37]} Ne6 {[%emt 0:01:07]} 21. Nf3 {[%emt 0:01:18]} Nd7 {[%emt 0:00:22]} 22. Nd5 {[%emt 0:11:19]} Ne5 {[%emt 0:03:22]} 23. Be3 {[%emt 0:01:00]} Nxf3+ {[%emt 0:01:56]} 24. Bxf3 {[%emt 0:00:17]} Nd4 {[%emt 0:02:45]} 25. Qd1 {[%emt 0:01:53]} Nxf3+ {[%emt 0:01:26]} 26. Qxf3 {[%emt 0:00:13]} Bxd5 {[%emt 0:03:51]} 27. exd5 {[%emt 0:00:19]} Bc3 {[%emt 0:02:07]} 28. Rec1 {[%emt 0:01:56]} Be5 {[%emt 0:03:15]} 29. g5 {[%emt 0:03:52]} Qd7 {[%emt 0:02:30]} 30. Kg2 {[%emt 0:00:23]} Kg7 {[%emt 0:02:07]} 31. Rh1 {[%emt 0:06:07]} f5 {[%emt 0:01:10]} 32. gxf6+ {[%emt 0:01:45]} Bxf6 {[%emt 0:00:04]} 33. Bh6+ {[%emt 0:03:08]} Kxh6 {[%emt 0:03:54]} 34. Qxf6 {[%emt 0:00:08]} Re4 {[%emt 0:01:47]} 35. Ra1 {[%emt 0:09:09]} Rae8 {[%emt 0:02:10]} 36. Rhg1 {[%emt 0:01:00]} Qe7 {[%emt 0:01:45]} 37. Qxe7 {[%emt 0:01:07]} R4xe7 {[%emt 0:00:01]} 38. Ra7 {[%emt 0:00:18]} b6 {[%emt 0:00:26]} 39. Rga1 {[%emt 0:00:59]} Rf8 {[%emt 0:01:13]} 40. Rb7 {[%emt 0:00:16]} Re2 {[%emt 0:00:32]} 41. Rf1 {[%emt 0:02:12]} Rf7 {[%emt 0:00:12]} 42. b4 {[%emt 0:00:23]} Rc2 {[%emt 0:00:55]} 43. c5 {[%emt 0:01:36]} bxc5 {[%emt 0:00:09]} 44. b5 {[%emt 0:00:07]} Rb2 {[%emt 0:00:11]} 45. Kg1 {[%emt 0:00:13]} Kg7 {[%emt 0:00:47]} 46. f3 {[%emt 0:00:08]} Rd2 {[%emt 0:01:09]} 47. b6 {[%emt 0:00:42]} cxb6 {[%emt 0:00:07]} 48. Rxb6 {[%emt 0:00:05]} Rxd5 {[%emt 0:00:04]} 49. Kg2 {[%emt 0:00:06]} Rd2+ {[%emt 0:00:05]} 50. Kg1 {[%emt 0:00:04]} Rc7 {[%emt 0:00:22]} 51. Re1 {[%emt 0:00:18]} Kf7 {[%emt 0:00:23]} 0-1

[Event "48th Indian U15-ch Girls 2023"]
[Site "Jalgaon"]
[Date "2023.12.28"]
[Round "2.10"]
[White "Drishtee Ghosh"]
[Black "Saranya Devi Narahari"]
[Result "1-0"]
[WhiteElo "1605"]
[BlackElo "1392"]
[PlyCount "129"]
[EventDate "2023.12.30"]
[EventType "swiss"]
[EventCountry "IND"]
[TimeControl "5400+30"]

1. e4 {[%emt 0:00:30]} c5 {[%emt 0:00:30]} 2. Nf3 {[%emt 0:00:30]} e6 {[%emt 0:00:30]} 3. d4 {[%emt 0:00:30]} cxd4 {[%emt 0:00:30]} 4. Nxd4 {[%emt 0:00:30]} Nf6 {[%emt 0:00:30]} 5. Nc3 {[%emt 0:00:30]} Nc6 {[%emt 0:00:30]} 6. Nxc6 {[%emt 0:00:30]} bxc6 {[%emt 0:00:30]} 7. e5 {[%emt 0:00:30]} Nd5 {[%emt 0:00:30]} 8. Ne4 {[%emt 0:00:30]} Qc7 {[%emt 0:00:30]} 9. f4 {[%emt 0:00:30]} Qb6 {[%emt 0:00:30]} 10. c4 {[%emt 0:00:30]} Bb4+ {[%emt 0:00:30]} 11. Ke2 {[%emt 0:00:30]} f5 {[%emt 0:00:30]} 12. exf6 {[%emt 0:00:30]} Nxf6 {[%emt 0:00:30]} 13. Be3 {[%emt 0:00:30]} Qd8 {[%emt 0:00:30]} 14. Nd6+ {[%emt 0:00:30]} Bxd6 {[%emt 0:00:30]} 15. Qxd6 {[%emt 0:00:30]} Bb7 {[%emt 0:00:30]} 16. Rd1 {[%emt 0:00:30]} Rc8 {[%emt 0:00:30]} 17. g4 {[%emt 0:00:30]} c5 {[%emt 0:00:30]} 18. Rg1 {[%emt 0:00:30]} Rc6 {[%emt 0:00:30]} 19. Qe5 {[%emt 0:00:30]} O-O {[%emt 0:00:30]} 20. g5 {[%emt 0:00:30]} Nh5 {[%emt 0:00:30]} 21. Bh3 {[%emt 0:00:30]} d6 {[%emt 0:00:30]} 22. Qxe6+ {[%emt 0:00:30]} Kh8 {[%emt 0:00:30]} 23. Rgf1 {[%emt 0:00:30]} Rb6 {[%emt 0:00:30]} 24. b3 {[%emt 0:00:30]} Ra6 {[%emt 0:00:30]} 25. Qd7 {[%emt 0:00:30]} Rxa2+ {[%emt 0:00:30]} 26. Rd2 {[%emt 0:00:30]} Rxd2+ {[%emt 0:00:30]} 27. Bxd2 {[%emt 0:00:30]} Qe8+ {[%emt 0:00:30]} 28. Qxe8 {[%emt 0:00:30]} Rxe8+ {[%emt 0:00:30]} 29. Kf2 {[%emt 0:00:30]} g6 {[%emt 0:00:30]} 30. Rd1 {[%emt 0:00:30]} Kg8 {[%emt 0:00:30]} 31. Be3 {[%emt 0:00:30]} Rd8 {[%emt 0:00:30]} 32. Bg4 {[%emt 0:00:30]} Be4 {[%emt 0:00:30]} 33. Bxc5 {[%emt 0:00:30]} Bc2 {[%emt 0:00:30]} 34. Rxd6 {[%emt 0:00:30]} Rxd6 {[%emt 0:00:30]} 35. Bxd6 {[%emt 0:00:30]} Bxb3 {[%emt 0:00:30]} 36. Be6+ {[%emt 0:00:30]} Kg7 {[%emt 0:00:30]} 37. Ke3 {[%emt 0:00:30]} a5 {[%emt 0:00:30]} 38. Kd4 {[%emt 0:00:30]} a4 {[%emt 0:00:30]} 39. Kc3 {[%emt 0:00:30]} h6 {[%emt 0:00:30]} 40. Kb4 {[%emt 0:00:30]} Kh7 {[%emt 0:00:30]} 41. Be5 {[%emt 0:00:30]} hxg5 {[%emt 0:00:30]} 42. fxg5 {[%emt 0:00:30]} Bd1 {[%emt 0:00:30]} 43. Bd7 {[%emt 0:00:30]} a3 {[%emt 0:00:30]} 44. Kxa3 {[%emt 0:00:30]} Be2 {[%emt 0:00:30]} 45. c5 {[%emt 0:00:30]} Bf3 {[%emt 0:00:30]} 46. c6 {[%emt 0:00:30]} Ng7 {[%emt 0:00:30]} 47. c7 {[%emt 0:00:30]} Bb7 {[%emt 0:00:30]} 48. Bxg7 {[%emt 0:00:30]} Ba6 {[%emt 0:00:30]} 49. c8=Q {[%emt 0:00:30]} Bxc8 {[%emt 0:00:30]} 50. Bxc8 {[%emt 0:00:30]} Kxg7 {[%emt 0:00:30]} 51. Kb4 {[%emt 0:00:30]} Kh7 {[%emt 0:00:30]} 52. Kc5 {[%emt 0:00:30]} Kg7 {[%emt 0:00:30]} 53. Kd6 {[%emt 0:00:30]} Kh7 {[%emt 0:00:30]} 54. Ke6 {[%emt 0:00:30]} Kg7 {[%emt 0:00:30]} 55. Ke7 {[%emt 0:00:30]} Kh8 {[%emt 0:00:30]} 56. Kf8 {[%emt 0:00:30]} Kh7 {[%emt 0:00:30]} 57. Kf7 {[%emt 0:00:30]} Kh8 {[%emt 0:00:30]} 58. Kxg6 {[%emt 0:00:30]} Kg8 {[%emt 0:00:30]} 59. h4 {[%emt 0:00:30]} Kh8 {[%emt 0:00:30]} 60. h5 {[%emt 0:00:30]} Kg8 {[%emt 0:00:30]} 61. h6 {[%emt 0:00:30]} Kh8 {[%emt 0:00:30]} 62. Kf7 {[%emt 0:00:30]} Kh7 {[%emt 0:00:30]} 63. g6+ {[%emt 0:00:30]} Kxh6 {[%emt 0:00:30]} 64. g7 {[%emt 0:00:30]} Kh5 {[%emt 0:00:30]} 65. g8=Q {[%emt 0:00:30]} 1-0

[Event "48th Indian U15-ch Girls 2023"]
[Site "Jalgaon"]
[Date "2023.12.28"]
[Round "3.1"]
[White "Kirthika B"]
[Black "Mrittika Mallick"]
[Result "0-1"]
[WhiteElo "1605"]
[BlackElo "1970"]
[PlyCount "110"]
[EventDate "2023.12.30"]
[EventType "swiss"]
[EventCountry "IND"]
[TimeControl "5400+30"]

1. e4 {[%emt 0:00:02]} c6 {[%emt 0:00:56]} 2. Nf3 {[%emt 0:00:40]} d5 {[%emt 0:00:45]} 3. Nc3 {[%emt 0:00:05]} Bg4 {[%emt 0:00:57]} 4. h3 {[%emt 0:00:15]} Bxf3 {[%emt 0:00:54]} 5. Qxf3 {[%emt 0:00:07]} e6 {[%emt 0:00:26]} 6. Be2 {[%emt 0:00:22]} Nd7 {[%emt 0:01:21]} 7. d4 {[%emt 0:02:41]} dxe4 {[%emt 0:03:32]} 8. Nxe4 {[%emt 0:05:12]} Ndf6 {[%emt 0:01:38]} 9. Nxf6+ {[%emt 0:01:44]} Nxf6 {[%emt 0:00:08]} 10. c3 {[%emt 0:00:38]} Be7 {[%emt 0:01:27]} 11. O-O {[%emt 0:01:59]} O-O {[%emt 0:00:18]} 12. Bg5 {[%emt 0:06:52]} Nd5 {[%emt 0:02:01]} 13. Bxe7 {[%emt 0:01:10]} Qxe7 {[%emt 0:00:12]} 14. Bd3 {[%emt 0:01:14]} g6 {[%emt 0:00:45]} 15. Rae1 {[%emt 0:02:59]} Rad8 {[%emt 0:01:53]} 16. Be4 {[%emt 0:06:27]} Qg5 {[%emt 0:04:24]} 17. Bxd5 {[%emt 0:03:05]} Rxd5 {[%emt 0:00:16]} 18. Qe4 {[%emt 0:05:24]} Rfd8 {[%emt 0:02:06]} 19. f4 {[%emt 0:02:00]} Qh4 {[%emt 0:00:55]} 20. Qf3 {[%emt 0:02:54]} a5 {[%emt 0:05:56]} 21. Re5 {[%emt 0:05:19]} a4 {[%emt 0:01:50]} 22. b4 {[%emt 0:05:08]} axb3 {[%emt 0:01:46]} 23. axb3 {[%emt 0:00:05]} Ra8 {[%emt 0:00:32]} 24. Rxd5 {[%emt 0:01:42]} cxd5 {[%emt 0:00:43]} 25. c4 {[%emt 0:12:53]} Qd8 {[%emt 0:01:03]} 26. Qc3 {[%emt 0:02:19]} Qc7 {[%emt 0:07:10]} 27. c5 {[%emt 0:02:39]} Ra2 {[%emt 0:02:56]} 28. g3 {[%emt 0:11:35]} Qd7 {[%emt 0:04:20]} 29. Ra1 {[%emt 0:03:31]} Re2 {[%emt 0:02:58]} 30. Qd3 {[%emt 0:02:10]} Re4 {[%emt 0:01:33]} 31. Kg2 {[%emt 0:03:03]} Kg7 {[%emt 0:03:17]} 32. b4 {[%emt 0:02:08]} h5 {[%emt 0:03:15]} 33. b5 {[%emt 0:07:48]} h4 {[%emt 0:00:35]} 34. b6 {[%emt 0:00:48]} hxg3 {[%emt 0:00:33]} 35. Kxg3 {[%emt 0:00:22]} Qe7 {[%emt 0:00:25]} 36. Qd2 {[%emt 0:00:24]} Qe8 {[%emt 0:02:00]} 37. Re1 {[%emt 0:00:44]} f5 {[%emt 0:01:52]} 38. Rxe4 {[%emt 0:00:11]} fxe4 {[%emt 0:00:01]} 39. Qa5 {[%emt 0:00:28]} Kh6 {[%emt 0:00:36]} 40. c6 {[%emt 0:00:52]} Qxc6 {[%emt 0:00:35]} 41. Qc5 {[%emt 0:00:11]} Qe8 {[%emt 0:01:22]} 42. Qd6 {[%emt 0:00:47]} Qf7 {[%emt 0:03:40]} 43. Qe5 {[%emt 0:00:32]} Kh7 {[%emt 0:00:50]} 44. Qc7 {[%emt 0:00:29]} Qg7 {[%emt 0:00:20]} 45. Qc5 {[%emt 0:00:29]} Kh6 {[%emt 0:00:29]} 46. h4 {[%emt 0:00:31]} Qf6 {[%emt 0:00:36]} 47. Qd6 {[%emt 0:00:30]} Kh5 {[%emt 0:00:43]} 48. Kg2 {[%emt 0:00:31]} Kg4 {[%emt 0:01:09]} 49. Qc7 {[%emt 0:00:29]} Qxf4 {[%emt 0:00:47]} 50. Qg7 {[%emt 0:00:27]} Qd2+ {[%emt 0:00:39]} 51. Kg1 {[%emt 0:00:06]} Qc1+ {[%emt 0:00:16]} 52. Kg2 {[%emt 0:00:08]} Qc2+ {[%emt 0:00:08]} 53. Kg1 {[%emt 0:00:03]} e3 {[%emt 0:00:37]} 54. Qe5 {[%emt 0:00:19]} Qf2+ {[%emt 0:00:29]} 55. Kh1 {[%emt 0:00:06]} Qxh4+ {[%emt 0:00:16]} 0-1

[Event "48th Indian U15-ch Girls 2023"]
[Site "Jalgaon"]
[Date "2023.12.28"]
[Round "3.2"]
[White "Shubhi Gupta"]
[Black "Drishtee Ghosh"]
[Result "1-0"]
[WhiteElo "1902"]
[BlackElo "1605"]
[PlyCount "113"]
[EventDate "2023.12.30"]
[EventType "swiss"]
[EventCountry "IND"]
[TimeControl "5400+30"]

1. d4 {[%emt 0:01:37]} Nf6 {[%emt 0:00:03]} 2. Bg5 {[%emt 0:01:14]} d5 {[%emt 0:01:08]} 3. Nd2 {[%emt 0:01:00]} e6 {[%emt 0:02:32]} 4. e4 {[%emt 0:01:49]} dxe4 {[%emt 0:01:22]} 5. Nxe4 {[%emt 0:00:07]} Be7 {[%emt 0:00:46]} 6. Bxf6 {[%emt 0:00:16]} Bxf6 {[%emt 0:00:10]} 7. Nf3 {[%emt 0:00:39]} O-O {[%emt 0:01:02]} 8. c3 {[%emt 0:00:59]} b6 {[%emt 0:01:17]} 9. Bd3 {[%emt 0:00:39]} Bb7 {[%emt 0:01:31]} 10. Qe2 {[%emt 0:00:52]} Nd7 {[%emt 0:01:59]} 11. O-O-O {[%emt 0:01:24]} Rb8 {[%emt 0:05:02]} 12. h4 {[%emt 0:03:57]} Be7 {[%emt 0:04:45]} 13. Ne5 {[%emt 0:09:49]} Qe8 {[%emt 0:13:39]} 14. Ng5 {[%emt 0:01:30]} Nf6 {[%emt 0:01:53]} 15. Qc2 {[%emt 0:03:27]} h6 {[%emt 0:07:14]} 16. Bh7+ {[%emt 0:01:03]} Kh8 {[%emt 0:00:13]} 17. Ngxf7+ {[%emt 0:00:12]} Rxf7 {[%emt 0:00:32]} 18. Bg6 {[%emt 0:00:05]} Qb5 {[%emt 0:04:15]} 19. Nxf7+ {[%emt 0:00:13]} Kg8 {[%emt 0:00:11]} 20. Ne5 {[%emt 0:00:07]} Bd6 {[%emt 0:02:26]} 21. Bf7+ {[%emt 0:01:23]} Kf8 {[%emt 0:00:37]} 22. Bxe6 {[%emt 0:01:24]} Bxe5 {[%emt 0:01:09]} 23. dxe5 {[%emt 0:00:15]} Qxe5 {[%emt 0:00:28]} 24. Qf5 {[%emt 0:00:40]} Qxf5 {[%emt 0:01:21]} 25. Bxf5 {[%emt 0:00:04]} Bxg2 {[%emt 0:00:46]} 26. Rhe1 {[%emt 0:00:31]} Bd5 {[%emt 0:06:24]} 27. Be6 {[%emt 0:00:40]} Be4 {[%emt 0:02:17]} 28. Rd4 {[%emt 0:00:18]} Bf3 {[%emt 0:01:32]} 29. Rf4 {[%emt 0:02:26]} Bh5 {[%emt 0:02:12]} 30. Rf5 {[%emt 0:01:50]} Rd8 {[%emt 0:01:57]} 31. Rfe5 {[%emt 0:01:02]} Re8 {[%emt 0:02:02]} 32. f4 {[%emt 0:02:55]} Bg4 {[%emt 0:04:27]} 33. Bxg4 {[%emt 0:00:54]} Rxe5 {[%emt 0:00:02]} 34. fxe5 {[%emt 0:00:22]} Nxg4 {[%emt 0:00:02]} 35. h5 {[%emt 0:00:09]} Kf7 {[%emt 0:01:05]} 36. Re4 {[%emt 0:00:24]} Nh2 {[%emt 0:01:02]} 37. Rh4 {[%emt 0:00:11]} Ke6 {[%emt 0:00:34]} 38. Rxh2 {[%emt 0:00:04]} Kxe5 {[%emt 0:00:03]} 39. Rf2 {[%emt 0:00:08]} Ke6 {[%emt 0:00:06]} 40. Kd2 {[%emt 0:00:07]} a6 {[%emt 0:00:21]} 41. a4 {[%emt 0:00:10]} b5 {[%emt 0:00:34]} 42. axb5 {[%emt 0:00:07]} axb5 {[%emt 0:00:02]} 43. Rg2 {[%emt 0:00:05]} Kf6 {[%emt 0:00:10]} 44. Rg6+ {[%emt 0:00:03]} Kf7 {[%emt 0:00:08]} 45. Rc6 {[%emt 0:00:03]} Kf8 {[%emt 0:00:12]} 46. Rxc7 {[%emt 0:00:08]} Kg8 {[%emt 0:00:05]} 47. Rb7 {[%emt 0:00:13]} Kf8 {[%emt 0:00:04]} 48. Rxb5 {[%emt 0:00:03]} Kg8 {[%emt 0:00:05]} 49. c4 {[%emt 0:00:02]} Kf8 {[%emt 0:00:07]} 50. Rb7 {[%emt 0:00:04]} Kg8 {[%emt 0:00:08]} 51. c5 {[%emt 0:00:03]} Kh8 {[%emt 0:00:09]} 52. c6 {[%emt 0:00:04]} Kg8 {[%emt 0:00:06]} 53. c7 {[%emt 0:00:09]} Kh7 {[%emt 0:00:09]} 54. Rb8 {[%emt 0:00:21]} g5 {[%emt 0:00:10]} 55. c8=Q {[%emt 0:00:06]} Kg7 {[%emt 0:00:06]} 56. Qf8+ {[%emt 0:00:04]} Kh7 {[%emt 0:00:06]} 57. Qf7# {[%emt 0:00:04]} 1-0

[Event "48th Indian U15-ch Girls 2023"]
[Site "Jalgaon"]
[Date "2023.12.28"]
[Round "3.3"]
[White "Sherali Pattnaik"]
[Black "Sachi Jain"]
[Result "1/2-1/2"]
[WhiteElo "1575"]
[BlackElo "1844"]
[PlyCount "60"]
[EventDate "2023.12.30"]
[EventType "swiss"]
[EventCountry "IND"]
[TimeControl "5400+30"]

1. e4 {[%emt 0:02:01]} e5 {[%emt 0:00:24]} 2. Nf3 {[%emt 0:00:07]} Nc6 {[%emt 0:00:14]} 3. Bb5 {[%emt 0:00:05]} a6 {[%emt 0:00:12]} 4. Ba4 {[%emt 0:00:04]} Nf6 {[%emt 0:00:06]} 5. O-O {[%emt 0:00:06]} Be7 {[%emt 0:00:10]} 6. Re1 {[%emt 0:00:08]} b5 {[%emt 0:00:06]} 7. Bb3 {[%emt 0:00:04]} d6 {[%emt 0:00:07]} 8. c3 {[%emt 0:00:04]} O-O {[%emt 0:00:10]} 9. h3 {[%emt 0:00:03]} Na5 {[%emt 0:00:09]} 10. Bc2 {[%emt 0:00:04]} c5 {[%emt 0:00:07]} 11. d4 {[%emt 0:00:07]} Qc7 {[%emt 0:00:10]} 12. d5 {[%emt 0:00:07]} Nc4 {[%emt 0:01:26]} 13. b3 {[%emt 0:00:05]} Nb6 {[%emt 0:00:03]} 14. a4 {[%emt 0:00:05]} c4 {[%emt 0:00:50]} 15. b4 {[%emt 0:07:36]} bxa4 {[%emt 0:07:19]} 16. Bxa4 {[%emt 0:01:18]} Nxa4 {[%emt 0:00:20]} 17. Rxa4 {[%emt 0:02:18]} Bd7 {[%emt 0:04:34]} 18. Ra2 {[%emt 0:02:02]} Rfb8 {[%emt 0:09:44]} 19. Nfd2 {[%emt 0:11:43]} Bb5 {[%emt 0:02:28]} 20. Na3 {[%emt 0:01:15]} Nd7 {[%emt 0:00:15]} 21. Qe2 {[%emt 0:01:25]} Nb6 {[%emt 0:00:51]} 22. Nf1 {[%emt 0:00:58]} Rc8 {[%emt 0:11:05]} 23. Ne3 {[%emt 0:01:38]} Bd7 {[%emt 0:00:08]} 24. Bd2 {[%emt 0:07:30]} g6 {[%emt 0:05:18]} 25. Rea1 {[%emt 0:06:30]} f5 {[%emt 0:06:20]} 26. f3 {[%emt 0:01:37]} f4 {[%emt 0:00:40]} 27. Nd1 {[%emt 0:00:48]} Ba4 {[%emt 0:06:59]} 28. Nb1 Bb5 29. Be1 Bd8 30. Bf2 Qb7 {[%emt 0:00:41]} 1/2-1/2

[Event "48th Indian U15-ch Girls 2023"]
[Site "Jalgaon"]
[Date "2023.12.28"]
[Round "3.4"]
[White "Sneha Halder"]
[Black "Aamuktha Guntaka"]
[Result "0-1"]
[WhiteElo "1766"]
[BlackElo "1532"]
[PlyCount "74"]
[EventDate "2023.12.30"]
[EventType "swiss"]
[EventCountry "IND"]
[TimeControl "5400+30"]

1. Nf3 {[%emt 0:00:24]} d5 {[%emt 0:01:32]} 2. c4 {[%emt 0:00:25]} dxc4 {[%emt 0:01:55]} 3. e4 {[%emt 0:00:52]} Nf6 {[%emt 0:01:58]} 4. Nc3 {[%emt 0:00:22]} e6 {[%emt 0:01:47]} 5. Bxc4 {[%emt 0:00:11]} c5 {[%emt 0:01:35]} 6. d3 {[%emt 0:05:05]} Nc6 {[%emt 0:01:19]} 7. O-O {[%emt 0:00:13]} Be7 {[%emt 0:00:34]} 8. Bb5 {[%emt 0:02:52]} Bd7 {[%emt 0:03:26]} 9. Bxc6 {[%emt 0:00:56]} Bxc6 {[%emt 0:00:08]} 10. Ne5 {[%emt 0:00:06]} Rc8 {[%emt 0:02:33]} 11. Bg5 {[%emt 0:03:33]} O-O {[%emt 0:08:23]} 12. f4 {[%emt 0:06:38]} Nd7 {[%emt 0:11:09]} 13. Bxe7 {[%emt 0:01:21]} Qxe7 {[%emt 0:00:07]} 14. Nxd7 {[%emt 0:00:37]} Qxd7 {[%emt 0:00:58]} 15. Rf3 {[%emt 0:07:51]} f5 {[%emt 0:10:36]} 16. Qe2 {[%emt 0:08:43]} Rcd8 {[%emt 0:06:04]} 17. Rd1 {[%emt 0:01:44]} b5 {[%emt 0:04:48]} 18. Re1 {[%emt 0:01:53]} b4 {[%emt 0:06:30]} 19. Nd1 {[%emt 0:02:08]} fxe4 {[%emt 0:03:52]} 20. dxe4 {[%emt 0:00:19]} Qd2 {[%emt 0:03:17]} 21. Nf2 {[%emt 0:03:48]} Bb5 {[%emt 0:01:40]} 22. Qxd2 {[%emt 0:07:33]} Rxd2 {[%emt 0:00:17]} 23. b3 {[%emt 0:18:36]} Rxa2 {[%emt 0:00:53]} 24. Rc1 {[%emt 0:03:37]} Be2 {[%emt 0:03:25]} 25. Re3 {[%emt 0:00:01]} Rxf4 {[%emt 0:02:09]} 26. Nh3 Rf8 {[%emt 0:01:27]} 27. Ng5 {[%emt 0:00:09]} Rc2 {[%emt 0:02:57]} 28. Re1 {[%emt 0:00:38]} Bg4 {[%emt 0:00:24]} 29. Rg3 {[%emt 0:02:07]} h6 {[%emt 0:00:26]} 30. Rxg4 {[%emt 0:00:40]} hxg5 {[%emt 0:00:04]} 31. Rxg5 {[%emt 0:00:03]} c4 {[%emt 0:00:47]} 32. bxc4 {[%emt 0:06:39]} b3 {[%emt 0:00:08]} 33. Rg3 {[%emt 0:01:28]} b2 {[%emt 0:00:16]} 34. Rd3 {[%emt 0:00:03]} Rc1 {[%emt 0:00:25]} 35. Rdd1 {[%emt 0:00:09]} b1=Q {[%emt 0:00:12]} 36. Rxc1 {[%emt 0:00:03]} Qb2 {[%emt 0:00:16]} 37. Rb1 {[%emt 0:00:26]} Qd4+ {[%emt 0:00:20]} 0-1